fUST/lending_fUST_20260506
["ID","MTS","AMOUNT","RATE_DAILY","PERIOD"]
[421638310,1778003452000,-500.0,0.00012876,2]
[421638327,1778003452000,-500.0,0.00012876,2]
[421638313,1778003452000,-500.0,0.00012876,2]
[421638314,1778003452000,-10346.12,0.00012876,2]
[421638321,1778003452000,-4458.21,0.00012876,2]
[421638320,1778003452000,-500.0,0.00012876,2]
[421638322,1778003452000,-941.67,0.00012876,2]
[421638332,1778003452000,-500.0,0.00012876,2]
[421638331,1778003452000,-821.87,0.00012876,2]
[421638323,1778003452000,-500.0,0.00012876,2]
[421638324,1778003452000,-3348.13,0.00012876,2]
[421638326,1778003452000,-7664.91,0.00012876,2]
[421638328,1778003452000,-500.0,0.00012876,2]
[421638330,1778003452000,-500.0,0.00012876,2]
[421638300,1778003452000,-4103.06,0.00012876,2]
[421638316,1778003452000,-500.0,0.00012876,2]
[421638301,1778003452000,-500.0,0.00012876,2]
[421638269,1778003452000,-500.0,0.00012876,2]
[421638303,1778003452000,-508.10385316,0.00012876,2]
[421638325,1778003452000,-358.02480401,0.00012876,2]
[421638279,1778003452000,-500.0,0.00012876,2]
[421638270,1778003452000,-765.11,0.00012876,2]
[421638280,1778003452000,-707.24,0.00012876,2]
[421638278,1778003452000,-500.0,0.00012876,2]
[421638271,1778003452000,-611.29,0.00012876,2]
[421638273,1778003452000,-500.0,0.00012876,2]
[421638277,1778003452000,-500.0,0.00012876,2]
[421638276,1778003452000,-525.72519133,0.00012876,2]
[421638274,1778003452000,-500.0,0.00012876,2]
[421638275,1778003452000,-500.0,0.00012876,2]
[421638272,1778003452000,-500.0,0.00012876,2]
[421638281,1778003452000,-500.0,0.00012876,2]
[421638284,1778003452000,-500.0,0.00012876,2]
[421638302,1778003452000,-500.0,0.00012876,2]
[421638283,1778003452000,-1218.72,0.00012876,2]
[421638286,1778003452000,-500.0,0.00012876,2]
[421638282,1778003452000,-500.0,0.00012876,2]
[421638292,1778003452000,-500.0,0.00012876,2]
[421638289,1778003452000,-1123.84,0.00012876,2]
[421638294,1778003452000,-3514.3,0.00012876,2]
[421638285,1778003452000,-500.0,0.00012876,2]
[421638290,1778003452000,-500.0,0.00012876,2]
[421638287,1778003452000,-1145.59,0.00012876,2]
[421638293,1778003452000,-422.26270655,0.00012876,2]
[421638291,1778003452000,-887.09,0.00012876,2]
[421638295,1778003452000,-500.0,0.00012876,2]
[421638296,1778003452000,-500.0,0.00012876,2]
[421638297,1778003452000,-500.0,0.00012876,2]
[421638298,1778003452000,-4497.86,0.00012876,2]
[421638288,1778003452000,-500.0,0.00012876,2]
[421638329,1778003452000,-500.0,0.00012876,2]
[421638333,1778003452000,-500.0,0.00012876,2]
[421638344,1778003452000,-723.96,0.00012876,2]
[421638360,1778003452000,-4642.04,0.00012876,2]
[421638370,1778003452000,-741.77,0.00012876,2]
[421638362,1778003452000,-3243.06,0.00012876,2]
[421638364,1778003452000,-500.0,0.00012876,2]
[421638367,1778003452000,-930.28,0.00012876,2]
[421638375,1778003452000,-3148.82,0.00012876,2]
[421638387,1778003452000,-736.69,0.00012876,2]
[421638385,1778003452000,-500.0,0.00012876,2]
[421638386,1778003452000,-1408.92,0.00012876,2]
[421638376,1778003452000,-604.73,0.00012876,2]
[421638374,1778003452000,-500.0,0.00012876,2]
[421638377,1778003452000,-11891.56,0.00012876,2]
[421638382,1778003452000,-500.0,0.00012876,2]
[421638380,1778003452000,-500.0,0.00012876,2]
[421638379,1778003452000,-4621.59,0.00012876,2]
[421638378,1778003452000,-500.0,0.00012876,2]
[421638383,1778003452000,-500.0,0.00012876,2]
[421638334,1778003452000,-3179.61,0.00012876,2]
[421638381,1778003452000,-1397.44,0.00012876,2]
[421638389,1778003452000,-500.0,0.00012876,2]
[421638388,1778003452000,-500.0,0.00012876,2]
[421638390,1778003452000,-4485.23,0.00012876,2]
[421638393,1778003452000,-1053.40591334,0.00012876,2]
[421638391,1778003452000,-500.0,0.00012876,2]
[421638392,1778003452000,-1373.68408666,0.00012876,2]
[421638397,1778003452000,-1004.33135196,0.000129,2]
[421638395,1778003452000,-2436.66864804,0.00012876,2]
[421638396,1778003452000,-1559.0,0.00012878,2]
[421638394,1778003452000,-8490.68135196,0.00012876,2]
[421638368,1778003452000,-994.12,0.00012876,2]
[421638365,1778003452000,-500.0,0.00012876,2]
[421638384,1778003452000,-500.0,0.00012876,2]
[421638363,1778003452000,-500.0,0.00012876,2]
[421638369,1778003452000,-500.0,0.00012876,2]
[421638346,1778003452000,-500.0,0.00012876,2]
[421638345,1778003452000,-500.0,0.00012876,2]
[421638342,1778003452000,-2793.73,0.00012876,2]
[421638339,1778003452000,-2044.53,0.00012876,2]
[421638341,1778003452000,-500.0,0.00012876,2]
[421638337,1778003452000,-500.0,0.00012876,2]
[421638336,1778003452000,-1469.1,0.00012876,2]
[421638340,1778003452000,-500.0,0.00012876,2]
[421638338,1778003452000,-500.0,0.00012876,2]
[421638343,1778003452000,-500.0,0.00012876,2]
[421638348,1778003452000,-500.0,0.00012876,2]
[421638347,1778003452000,-3021.79,0.00012876,2]
[421638349,1778003452000,-2222.53,0.00012876,2]
[421638335,1778003452000,-3532.8,0.00012876,2]
[421638350,1778003452000,-55635.53,0.00012876,2]
[421638366,1778003452000,-391.50097069,0.00012876,2]
[421638359,1778003452000,-500.0,0.00012876,2]
[421638371,1778003452000,-500.0,0.00012876,2]
[421638373,1778003452000,-535.56,0.00012876,2]
[421638361,1778003452000,-500.0,0.00012876,2]
[421638351,1778003452000,-500.0,0.00012876,2]
[421638372,1778003452000,-500.0,0.00012876,2]
[421638358,1778003452000,-11330.71,0.00012876,2]
[421638354,1778003452000,-500.0,0.00012876,2]
[421638355,1778003452000,-6145.49,0.00012876,2]
[421638353,1778003452000,-2465.3,0.00012876,2]
[421638357,1778003452000,-500.0,0.00012876,2]
[421638352,1778003452000,-500.0,0.00012876,2]
[421638356,1778003452000,-1161.19,0.00012876,2]
[421638420,1778003453000,-2569.0426,0.0001315,2]
[421638422,1778003453000,-500.0,0.0001315,2]
[421638425,1778003453000,-500.0,0.0001315,2]
[421638419,1778003453000,-1118.0,0.00013114,2]
[421638421,1778003453000,-2569.0426,0.0001315,2]
[421638417,1778003453000,-3133.38,0.00013096,2]
[421638423,1778003453000,-500.0,0.0001315,2]
[421638437,1778003453000,-500.0,0.0001315,2]
[421638433,1778003453000,-670.24,0.0001315,2]
[421638426,1778003453000,-1439.03,0.0001315,2]
[421638428,1778003453000,-500.0,0.0001315,2]
[421638429,1778003453000,-653.55,0.0001315,2]
[421638430,1778003453000,-500.0,0.0001315,2]
[421638431,1778003453000,-585.89,0.0001315,2]
[421638432,1778003453000,-500.0,0.0001315,2]
[421638424,1778003453000,-569.87,0.0001315,2]
[421638427,1778003453000,-612.92,0.0001315,2]
[421638418,1778003453000,-250.0,0.000131,2]
[421638400,1778003453000,-702.64,0.00012328,2]
[421638415,1778003453000,-323.8514928,0.0001306,2]
[421638436,1778003453000,-1797.07,0.0001315,2]
[421638398,1778003453000,-333.38,0.00011778,2]
[421638401,1778003453000,-200.0,0.00012363,2]
[421638399,1778003453000,-200.0,0.00011891,2]
[421638403,1778003453000,-200.0,0.00012834,2]
[421638406,1778003453000,-7087.55750279,0.000129,2]
[421638405,1778003453000,-702.64,0.00012876,2]
[421638410,1778003453000,-8091.88885475,0.000129,2]
[421638404,1778003453000,-558.47,0.00012876,2]
[421638408,1778003453000,-379.285,0.000129,2]
[421638402,1778003453000,-702.64,0.00012602,2]
[421638411,1778003453000,-8091.88885475,0.000129,2]
[421638407,1778003453000,-4781.34487934,0.000129,2]
[421638409,1778003453000,-2931.25897541,0.000129,2]
[421638412,1778003453000,-242.6159777,0.0001306,2]
[421638413,1778003453000,-325.7108611,0.0001306,2]
[421638416,1778003453000,-327.6376625,0.00013062,2]
[421638414,1778003453000,-325.688714,0.0001306,2]
[421638434,1778003453000,-500.0,0.0001315,2]
[421638476,1778003453000,-500.0,0.0001315,2]
[421638438,1778003453000,-594.63,0.0001315,2]
[421638460,1778003453000,-500.0,0.0001315,2]
[421638459,1778003453000,-500.0,0.0001315,2]
[421638458,1778003453000,-498.44592825,0.0001315,2]
[421638467,1778003453000,-867.51,0.0001315,2]
[421638463,1778003453000,-500.0,0.0001315,2]
[421638475,1778003453000,-566.36,0.0001315,2]
[421638464,1778003453000,-500.0,0.0001315,2]
[421638466,1778003453000,-2507.88,0.0001315,2]
[421638472,1778003453000,-500.0,0.0001315,2]
[421638474,1778003453000,-682.54,0.0001315,2]
[421638468,1778003453000,-672.24,0.0001315,2]
[421638471,1778003453000,-500.0,0.0001315,2]
[421638469,1778003453000,-2000.54,0.0001315,2]
[421638473,1778003453000,-500.0,0.0001315,2]
[421638465,1778003453000,-500.0,0.0001315,2]
[421638470,1778003453000,-500.0,0.0001315,2]
[421638435,1778003453000,-500.0,0.0001315,2]
[421638461,1778003453000,-2602.65,0.0001315,2]
[421638457,1778003453000,-594.87,0.0001315,2]
[421638477,1778003453000,-500.0,0.0001315,2]
[421638455,1778003453000,-500.0,0.0001315,2]
[421638439,1778003453000,-526.57,0.0001315,2]
[421638442,1778003453000,-519.47,0.0001315,2]
[421638449,1778003453000,-938.61,0.0001315,2]
[421638441,1778003453000,-567.95,0.0001315,2]
[421638440,1778003453000,-572.21,0.0001315,2]
[421638456,1778003453000,-1859.36,0.0001315,2]
[421638445,1778003453000,-738.88,0.0001315,2]
[421638444,1778003453000,-680.9,0.0001315,2]
[421638443,1778003453000,-500.0,0.0001315,2]
[421638446,1778003453000,-500.0,0.0001315,2]
[421638448,1778003453000,-1743.28,0.0001315,2]
[421638447,1778003453000,-500.0,0.0001315,2]
[421638452,1778003453000,-500.0,0.0001315,2]
[421638462,1778003453000,-509.59,0.0001315,2]
[421638451,1778003453000,-500.0,0.0001315,2]
[421638454,1778003453000,-782.94,0.0001315,2]
[421638453,1778003453000,-581.33,0.0001315,2]
[421638450,1778003453000,-591.6,0.0001315,2]
[421638498,1778003454000,-500.0,0.0001315,2]
[421638499,1778003454000,-500.0,0.0001315,2]
[421638500,1778003454000,-500.0,0.0001315,2]
[421638501,1778003454000,-500.0,0.0001315,2]
[421638504,1778003454000,-858.87,0.0001315,2]
[421638506,1778003454000,-500.0,0.0001315,2]
[421638507,1778003454000,-1188.18,0.0001315,2]
[421638516,1778003454000,-792.79,0.0001315,2]
[421638503,1778003454000,-613.47,0.0001315,2]
[421638505,1778003454000,-500.0,0.0001315,2]
[421638510,1778003454000,-500.0,0.0001315,2]
[421638509,1778003454000,-500.0,0.0001315,2]
[421638508,1778003454000,-4257.4,0.0001315,2]
[421638515,1778003454000,-393.37003223,0.0001315,2]
[421638496,1778003454000,-500.0,0.0001315,2]
[421638511,1778003454000,-500.0,0.0001315,2]
[421638495,1778003454000,-2705.54,0.0001315,2]
[421638486,1778003454000,-500.0,0.0001315,2]
[421638494,1778003454000,-500.0,0.0001315,2]
[421638512,1778003454000,-500.0,0.0001315,2]
[421638478,1778003454000,-500.0,0.0001315,2]
[421638479,1778003454000,-876.05,0.0001315,2]
[421638480,1778003454000,-500.0,0.0001315,2]
[421638481,1778003454000,-1445.54,0.0001315,2]
[421638484,1778003454000,-500.0,0.0001315,2]
[421638483,1778003454000,-500.0,0.0001315,2]
[421638497,1778003454000,-500.0,0.0001315,2]
[421638482,1778003454000,-500.0,0.0001315,2]
[421638489,1778003454000,-500.0,0.0001315,2]
[421638488,1778003454000,-1237.4,0.0001315,2]
[421638487,1778003454000,-500.0,0.0001315,2]
[421638491,1778003454000,-2068.26,0.0001315,2]
[421638490,1778003454000,-500.0,0.0001315,2]
[421638492,1778003454000,-500.0,0.0001315,2]
[421638493,1778003454000,-500.0,0.0001315,2]
[421638485,1778003454000,-1038.46,0.0001315,2]
[421638513,1778003454000,-500.0,0.0001315,2]
[421638502,1778003454000,-500.0,0.0001315,2]
[421638514,1778003454000,-500.0,0.0001315,2]
[421638542,1778003454000,-500.0,0.0001315,2]
[421638535,1778003454000,-500.0,0.0001315,2]
[421638538,1778003454000,-552.86,0.0001315,2]
[421638537,1778003454000,-500.0,0.0001315,2]
[421638539,1778003454000,-500.39169741,0.0001315,2]
[421638540,1778003454000,-1492.19,0.0001315,2]
[421638545,1778003454000,-500.0,0.0001315,2]
[421638536,1778003454000,-500.0,0.0001315,2]
[421638548,1778003454000,-1328.28,0.0001315,2]
[421638547,1778003454000,-893.4,0.0001315,2]
[421638551,1778003454000,-500.0,0.0001315,2]
[421638550,1778003454000,-555.12,0.0001315,2]
[421638549,1778003454000,-500.0,0.0001315,2]
[421638553,1778003454000,-376.09680636,0.0001315,2]
[421638554,1778003454000,-92.98190313,0.0001315,2]
[421638517,1778003454000,-500.0,0.0001315,2]
[421638546,1778003454000,-1791.35,0.0001315,2]
[421638541,1778003454000,-500.0,0.0001315,2]
[421638543,1778003454000,-500.0,0.0001315,2]
[421638534,1778003454000,-500.0,0.0001315,2]
[421638518,1778003454000,-500.0,0.0001315,2]
[421638519,1778003454000,-601.77,0.0001315,2]
[421638520,1778003454000,-785.91,0.0001315,2]
[421638522,1778003454000,-587.16,0.0001315,2]
[421638521,1778003454000,-500.0,0.0001315,2]
[421638544,1778003454000,-500.0,0.0001315,2]
[421638524,1778003454000,-4054.53,0.0001315,2]
[421638525,1778003454000,-2123.89,0.0001315,2]
[421638526,1778003454000,-1856.52,0.0001315,2]
[421638523,1778003454000,-1246.96,0.0001315,2]
[421638527,1778003454000,-500.0,0.0001315,2]
[421638532,1778003454000,-1018.33,0.0001315,2]
[421638529,1778003454000,-500.0,0.0001315,2]
[421638552,1778003454000,-123.90319364,0.0001315,2]
[421638530,1778003454000,-500.0,0.0001315,2]
[421638533,1778003454000,-687.51,0.0001315,2]
[421638531,1778003454000,-500.0,0.0001315,2]
[421638528,1778003454000,-500.0,0.0001315,2]
[421638561,1778003455000,-500.0,0.0001315,2]
[421638557,1778003455000,-4016.4,0.0001315,2]
[421638556,1778003455000,-500.0,0.0001315,2]
[421638559,1778003455000,-629.59,0.0001315,2]
[421638568,1778003455000,-755.82,0.0001315,2]
[421638558,1778003455000,-500.0,0.0001315,2]
[421638567,1778003455000,-500.0,0.0001315,2]
[421638569,1778003455000,-709.57,0.0001315,2]
[421638555,1778003455000,-2328.54809687,0.0001315,2]
[421638562,1778003455000,-500.0,0.0001315,2]
[421638573,1778003455000,-294.20330873,0.0001315,2]
[421638572,1778003455000,-500.0,0.0001315,2]
[421638570,1778003455000,-500.0,0.0001315,2]
[421638560,1778003455000,-634.61431716,0.0001315,2]
[421638566,1778003455000,-500.0,0.0001315,2]
[421638565,1778003455000,-589.69,0.0001315,2]
[421638563,1778003455000,-500.0,0.0001315,2]
[421638564,1778003455000,-500.0,0.0001315,2]
[421638675,1778003456000,-500.0,0.0001315,2]
[421638688,1778003456000,-3514.3,0.0001315,2]
[421638667,1778003456000,-2051.58,0.0001315,2]
[421638671,1778003456000,-765.11,0.0001315,2]
[421638668,1778003456000,-500.0,0.0001315,2]
[421638669,1778003456000,-500.0,0.0001315,2]
[421638670,1778003456000,-589.38753036,0.0001315,2]
[421638672,1778003456000,-611.29,0.0001315,2]
[421638673,1778003456000,-500.0,0.0001315,2]
[421638677,1778003456000,-500.0,0.0001315,2]
[421638685,1778003456000,-1123.84,0.0001315,2]
[421638681,1778003456000,-500.0,0.0001315,2]
[421638679,1778003456000,-500.0,0.0001315,2]
[421638674,1778003456000,-500.0,0.0001315,2]
[421638678,1778003456000,-707.24,0.0001315,2]
[421638682,1778003456000,-500.0,0.0001315,2]
[421638684,1778003456000,-500.0,0.0001315,2]
[421638683,1778003456000,-1145.59,0.0001315,2]
[421638695,1778003456000,-500.0,0.0001315,2]
[421638696,1778003456000,-500.0,0.0001315,2]
[421638686,1778003456000,-500.0,0.0001315,2]
[421638687,1778003456000,-887.09,0.0001315,2]
[421638680,1778003456000,-1218.72,0.0001315,2]
[421638666,1778003456000,-500.0,0.0001315,2]
[421638665,1778003456000,-937.22,0.0001315,2]
[421638662,1778003456000,-1106.49,0.0001315,2]
[421638642,1778003456000,-500.0,0.0001315,2]
[421638643,1778003456000,-2566.36,0.0001315,2]
[421638641,1778003456000,-500.0,0.0001315,2]
[421638644,1778003456000,-500.0,0.0001315,2]
[421638646,1778003456000,-5306.68,0.0001315,2]
[421638650,1778003456000,-500.0,0.0001315,2]
[421638648,1778003456000,-500.0,0.0001315,2]
[421638652,1778003456000,-1768.37,0.0001315,2]
[421638645,1778003456000,-714.8637,0.0001315,2]
[421638655,1778003456000,-3434.49,0.0001315,2]
[421638663,1778003456000,-500.0,0.0001315,2]
[421638649,1778003456000,-500.0,0.0001315,2]
[421638654,1778003456000,-3348.2,0.0001315,2]
[421638651,1778003456000,-500.0,0.0001315,2]
[421638653,1778003456000,-500.0,0.0001315,2]
[421638657,1778003456000,-500.0,0.0001315,2]
[421638659,1778003456000,-500.0,0.0001315,2]
[421638656,1778003456000,-10377.59,0.0001315,2]
[421638658,1778003456000,-500.0,0.0001315,2]
[421638661,1778003456000,-500.0,0.0001315,2]
[421638660,1778003456000,-500.0,0.0001315,2]
[421638664,1778003456000,-6852.98,0.0001315,2]
[421638647,1778003456000,-12053.66,0.0001315,2]
[421638690,1778003456000,-500.0,0.0001315,2]
[421638676,1778003456000,-500.0,0.0001315,2]
[421638689,1778003456000,-630.06051891,0.0001315,2]
[421638721,1778003456000,-3532.8,0.0001315,2]
[421638724,1778003456000,-500.0,0.0001315,2]
[421638720,1778003456000,-3179.61,0.0001315,2]
[421638723,1778003456000,-500.0,0.0001315,2]
[421638725,1778003456000,-2044.53,0.0001315,2]
[421638726,1778003456000,-486.89850194,0.0001315,2]
[421638727,1778003456000,-500.0,0.0001315,2]
[421638729,1778003456000,-723.96,0.0001315,2]
[421638728,1778003456000,-2793.73,0.0001315,2]
[421638730,1778003456000,-500.0,0.0001315,2]
[421638719,1778003456000,-821.87,0.0001315,2]
[421638731,1778003456000,-500.0,0.0001315,2]
[421638732,1778003456000,-3021.79,0.0001315,2]
[421638735,1778003456000,-500.0,0.0001315,2]
[421638734,1778003456000,-55635.53,0.0001315,2]
[421638733,1778003456000,-2222.53,0.0001315,2]
[421638737,1778003456000,-2465.3,0.0001315,2]
[421638740,1778003456000,-1161.19,0.0001315,2]
[421638738,1778003456000,-500.0,0.0001315,2]
[421638739,1778003456000,-6145.49,0.0001315,2]
[421638742,1778003456000,-4642.04,0.0001315,2]
[421638691,1778003456000,-4497.86,0.0001315,2]
[421638736,1778003456000,-500.0,0.0001315,2]
[421638722,1778003456000,-1469.1,0.0001315,2]
[421638741,1778003456000,-11330.71,0.0001315,2]
[421638714,1778003456000,-3348.13,0.0001315,2]
[421638718,1778003456000,-500.0,0.0001315,2]
[421638694,1778003456000,-500.0,0.0001315,2]
[421638693,1778003456000,-4103.06,0.0001315,2]
[421638698,1778003456000,-581.01,0.0001315,2]
[421638701,1778003456000,-781.68,0.0001315,2]
[421638697,1778003456000,-500.0,0.0001315,2]
[421638700,1778003456000,-762.06,0.0001315,2]
[421638704,1778003456000,-500.0,0.0001315,2]
[421638702,1778003456000,-500.0,0.0001315,2]
[421638707,1778003456000,-2546.95,0.0001315,2]
[421638705,1778003456000,-500.0,0.0001315,2]
[421638692,1778003456000,-353.58,0.0001315,2]
[421638699,1778003456000,-3517.54,0.0001315,2]
[421638715,1778003456000,-7664.91,0.0001315,2]
[421638706,1778003456000,-10346.12,0.0001315,2]
[421638713,1778003456000,-941.67,0.0001315,2]
[421638712,1778003456000,-4458.21,0.0001315,2]
[421638711,1778003456000,-196.07918185,0.0001315,2]
[421638716,1778003456000,-500.0,0.0001315,2]
[421638709,1778003456000,-171.25887002,0.0001315,2]
[421638717,1778003456000,-500.0,0.0001315,2]
[421638708,1778003456000,-500.0,0.0001315,2]
[421638703,1778003456000,-600.58847496,0.0001315,2]
[421638710,1778003456000,-500.0,0.0001315,2]
[421638770,1778003457000,-500.0,0.0001315,2]
[421638769,1778003457000,-4485.23,0.0001315,2]
[421638768,1778003457000,-500.0,0.0001315,2]
[421638772,1778003457000,-10927.35,0.0001315,2]
[421638773,1778003457000,-558.47,0.0001315,2]
[421638771,1778003457000,-2427.09,0.0001315,2]
[421638776,1778003457000,-225.99610878,0.0001326,3]
[421638774,1778003457000,-702.64,0.0001315,2]
[421638777,1778003457000,-200.0,0.00013305,2]
[421638778,1778003457000,-1000.0,0.00013376,2]
[421638781,1778003457000,-2569.0426,0.00013424,2]
[421638784,1778003457000,-500.0,0.00013424,2]
[421638783,1778003457000,-500.0,0.00013424,2]
[421638786,1778003457000,-454.17025883,0.00013424,2]
[421638782,1778003457000,-2569.0426,0.00013424,2]
[421638779,1778003457000,-244.0,0.00013376,2]
[421638787,1778003457000,-1031.01681778,0.00013424,2]
[421638785,1778003457000,-569.87,0.00013424,2]
[421638767,1778003457000,-500.0,0.0001315,2]
[421638788,1778003457000,-1439.03,0.00013424,2]
[421638775,1778003457000,-1559.0,0.00013152,2]
[421638766,1778003457000,-736.69,0.0001315,2]
[421638753,1778003457000,-500.0,0.0001315,2]
[421638765,1778003457000,-1408.92,0.0001315,2]
[421638790,1778003457000,-500.0,0.00013424,2]
[421638743,1778003457000,-500.0,0.0001315,2]
[421638745,1778003457000,-500.0,0.0001315,2]
[421638746,1778003457000,-500.0,0.0001315,2]
[421638747,1778003457000,-930.28,0.0001315,2]
[421638744,1778003457000,-3243.06,0.0001315,2]
[421638748,1778003457000,-994.12,0.0001315,2]
[421638749,1778003457000,-741.77,0.0001315,2]
[421638751,1778003457000,-500.0,0.0001315,2]
[421638754,1778003457000,-3148.82,0.0001315,2]
[421638752,1778003457000,-535.56,0.0001315,2]
[421638750,1778003457000,-500.0,0.0001315,2]
[421638756,1778003457000,-11891.56,0.0001315,2]
[421638755,1778003457000,-604.73,0.0001315,2]
[421638761,1778003457000,-500.0,0.0001315,2]
[421638758,1778003457000,-4621.59,0.0001315,2]
[421638757,1778003457000,-500.0,0.0001315,2]
[421638760,1778003457000,-1397.44,0.0001315,2]
[421638759,1778003457000,-500.0,0.0001315,2]
[421638763,1778003457000,-500.0,0.0001315,2]
[421638764,1778003457000,-500.0,0.0001315,2]
[421638762,1778003457000,-500.0,0.0001315,2]
[421638791,1778003457000,-653.55,0.00013424,2]
[421638780,1778003457000,-8091.88885475,0.00013407,2]
[421638794,1778003457000,-500.0,0.00013424,2]
[421638820,1778003457000,-500.0,0.00013424,2]
[421638816,1778003457000,-782.94,0.00013424,2]
[421638822,1778003457000,-509.59,0.00013424,2]
[421638821,1778003457000,-500.0,0.00013424,2]
[421638817,1778003457000,-500.0,0.00013424,2]
[421638826,1778003457000,-2507.88,0.00013424,2]
[421638827,1778003457000,-867.51,0.00013424,2]
[421638829,1778003457000,-2000.54,0.00013424,2]
[421638825,1778003457000,-500.0,0.00013424,2]
[421638828,1778003457000,-672.24,0.00013424,2]
[421638830,1778003457000,-682.54,0.00013424,2]
[421638831,1778003457000,-566.36,0.00013424,2]
[421638833,1778003457000,-500.0,0.00013424,2]
[421638832,1778003457000,-500.0,0.00013424,2]
[421638835,1778003457000,-500.0,0.00013424,2]
[421638834,1778003457000,-876.05,0.00013424,2]
[421638836,1778003457000,-500.0,0.00013424,2]
[421638839,1778003457000,-1038.46,0.00013424,2]
[421638838,1778003457000,-500.0,0.00013424,2]
[421638837,1778003457000,-1445.54,0.00013424,2]
[421638792,1778003457000,-500.0,0.00013424,2]
[421638824,1778003457000,-500.0,0.00013424,2]
[421638818,1778003457000,-1859.36,0.00013424,2]
[421638819,1778003457000,-594.87,0.00013424,2]
[421638814,1778003457000,-500.0,0.00013424,2]
[421638789,1778003457000,-612.92,0.00013424,2]
[421638793,1778003457000,-585.89,0.00013424,2]
[421638795,1778003457000,-670.24,0.00013424,2]
[421638797,1778003457000,-500.0,0.00013424,2]
[421638799,1778003457000,-500.0,0.00013424,2]
[421638823,1778003457000,-602.51221907,0.00013424,2]
[421638796,1778003457000,-500.0,0.00013424,2]
[421638800,1778003457000,-594.63,0.00013424,2]
[421638802,1778003457000,-572.21,0.00013424,2]
[421638801,1778003457000,-526.57,0.00013424,2]
[421638804,1778003457000,-519.47,0.00013424,2]
[421638798,1778003457000,-1797.07,0.00013424,2]
[421638805,1778003457000,-500.0,0.00013424,2]
[421638809,1778003457000,-500.0,0.00013424,2]
[421638810,1778003457000,-1743.28,0.00013424,2]
[421638812,1778003457000,-591.6,0.00013424,2]
[421638807,1778003457000,-738.88,0.00013424,2]
[421638806,1778003457000,-680.9,0.00013424,2]
[421638808,1778003457000,-500.0,0.00013424,2]
[421638811,1778003457000,-938.61,0.00013424,2]
[421638813,1778003457000,-500.0,0.00013424,2]
[421638815,1778003457000,-581.33,0.00013424,2]
[421638803,1778003457000,-567.95,0.00013424,2]
[421638852,1778003458000,-1188.18,0.00013424,2]
[421638851,1778003458000,-858.87,0.00013424,2]
[421638849,1778003458000,-500.0,0.00013424,2]
[421638847,1778003458000,-500.0,0.00013424,2]
[421638848,1778003458000,-500.0,0.00013424,2]
[421638844,1778003458000,-500.0,0.00013424,2]
[421638846,1778003458000,-2705.54,0.00013424,2]
[421638843,1778003458000,-2068.26,0.00013424,2]
[421638841,1778003458000,-1237.4,0.00013424,2]
[421638842,1778003458000,-500.0,0.00013424,2]